bitfinex-derivatives/quotes_ETHF0:USTF0_20241004
["timestamp","ask_amount","ask_price","bid_price","bid_amount"]
[1728082964474,0.4117,2422.2,2422.1,0.81764]
[1728082964876,0.3983,2422.3,2422.1,0.81764]
[1728082964877,3.2078,2422.4,2422.2,0.41282]
[1728082965175,3.2078,2422.4,2422.3,0.4033]
[1728082965383,3.2078,2422.4,2422.3,1.36344467]
[1728082967282,3.62059,2422.4,2422.3,0.95063467]
[1728082967478,4.81059,2422.4,2422.1,0.81763]
[1728082967677,4.81059,2422.4,2422.2,0.54736265]
[1728082967977,4.81059,2422.4,2422.1,0.81763]
[1728082968178,4.3978,2422.4,2422.2,0.54735909]
[1728082968478,4.81059,2422.4,2422.1,0.81763]
[1728082968879,4.81059,2422.4,2422.2,0.54738423]
[1728082969080,4.81059,2422.4,2422.1,0.81763]
[1728082969383,4.81059,2422.4,2422.2,0.54740652]
[1728082969685,4.81059,2422.4,2422.1,0.81763]
[1728082969888,4.81059,2422.4,2422.2,0.54740714]
[1728082970184,4.81059,2422.4,2422.1,0.81763]
[1728082970484,4.3978,2422.4,2422.2,0.54742931]
[1728082970786,3.2078,2422.4,2422.3,0.96023047]
[1728082970980,3.2078,2422.4,2422.3,0.54742047]
[1728082971176,3.62059,2422.4,2422.1,0.81763]
[1728082971387,3.62059,2422.4,2422.2,0.54744418]
[1728082971581,3.62059,2422.4,2422.1,0.81763]
[1728082971780,3.62059,2422.4,2422.2,0.54744421]
[1728082971976,3.62059,2422.4,2422.2,0.41282]
[1728082972189,3.2078,2422.4,2422.2,0.41282]
[1728082972787,3.2078,2422.4,2422.1,1.5948]
[1728082972986,3.2078,2422.4,2422.2,0.96027849]
[1728082973294,3.2078,2422.4,2422.2,0.41282]
[1728082973979,3.2078,2422.4,2422.1,1.5948]
[1728082974179,3.62059,2422.4,2422.2,0.54747632]
[1728082974382,3.62059,2422.4,2422.1,2.00763]
[1728082974578,3.62059,2422.4,2422.2,0.54749271]
[1728082974792,3.62059,2422.4,2422.1,2.00763]
[1728082975090,3.62059,2422.4,2422.2,0.54749347]
[1728082975283,3.62059,2422.4,2422.1,2.00763]
[1728082975484,3.62059,2422.4,2422.2,0.54751369]
[1728082975683,3.62059,2422.4,2422.1,2.00763]
[1728082975885,3.2078,2422.4,2422.2,0.54750975]
[1728082976083,3.2078,2422.4,2422.1,2.00763]
[1728082976388,3.2078,2422.4,2422.2,0.54753096]
[1728082976584,3.62059,2422.4,2422.1,2.00763]
[1728082976887,3.62059,2422.4,2422.2,0.54753297]
[1728082977082,3.62059,2422.4,2422.1,2.00763]
[1728082977289,3.62059,2422.4,2422.2,0.54754822]
[1728082977587,3.62059,2422.4,2422.1,0.81763]
[1728082977789,3.62059,2422.4,2422.2,0.54754835]
[1728082977985,3.62059,2422.4,2422.1,0.81763]
[1728082978190,3.62059,2422.4,2422.2,0.54754905]
[1728082978390,3.62059,2422.4,2422.1,0.81763]
[1728082978590,3.2078,2422.4,2422.2,0.96038453]
[1728082978792,3.2078,2422.4,2422.2,0.41282]
[1728082980384,3.62059,2422.4,2422.1,0.81763]
[1728082980580,3.62059,2422.4,2422.2,0.54757596]
[1728082980892,3.2078,2422.4,2422.3,0.54757257]
[1728082981191,3.2078,2422.4,2422.2,0.41282]
[1728082981394,3.2078,2422.4,2422.3,0.54757764]
[1728082981787,3.2078,2422.4,2422.2,0.41282]
[1728082982390,3.2078,2422.4,2422.3,0.3868]
[1728082982992,3.62059,2422.4,2422.3,0.3868]
[1728082983190,3.62059,2422.4,2422.3,0.93440611]
[1728082983894,3.62059,2422.4,2422.3,0.3868]
[1728082984194,0.41279,2422.4,2422.3,0.3868]
[1728082984495,0.41279,2422.4,2422.3,0.93443173]
[1728082986488,0.41279,2422.4,2422.3,0.3868]
[1728082987587,0.41275,2422.7,2422.3,5.7048]
[1728082987793,3.5953,2422.8,2422.4,1.5853]
[1728082987993,0.41274,2422.7,2422.5,0.82757]
[1728082989098,4.00803,2422.8,2422.6,0.41275]
[1728082989299,0.41274,2422.7,2422.6,0.81635]
[1728082989598,3.5953,2422.8,2422.6,0.81635]
[1728082989801,4.00803,2422.8,2422.7,0.41274]
[1728082990297,4.00803,2422.8,2422.6,0.81635]
[1728082990298,0.41274,2422.7,2422.6,0.81635]
[1728082991587,4.00803,2422.8,2422.6,0.81635]
[1728082991792,0.41274,2422.7,2422.6,0.81635]
[1728082992195,0.41274,2422.7,2422.6,0.4036]
[1728082992691,0.41274,2422.7,2422.6,0.81635]
[1728082993203,0.41274,2422.7,2422.6,0.4036]
[1728082994098,0.41274,2422.7,2422.6,0.81635]
[1728082994599,0.41274,2422.7,2422.6,0.4036]
[1728082997894,0.41274,2422.7,2422.6,0.81635]
[1728082999104,0.41274,2422.7,2422.6,0.4036]
[1728083001002,0.41274,2422.7,2422.6,0.81635]
[1728083001197,0.41274,2422.7,2422.6,0.4036]
[1728083005702,0.41275,2422.6,2422.5,0.82757]
[1728083007508,0.41275,2422.6,2422.5,4.95557]
[1728083007806,0.41275,2422.6,2422.5,0.82757]
[1728083009997,0.41275,2422.6,2422.5,1.37522551]
[1728083010499,0.41275,2422.7,2422.5,0.82757]
[1728083010704,0.41275,2422.7,2422.5,1.37481822]
[1728083011017,0.41275,2422.7,2422.6,0.54724822]
[1728083012009,0.41275,2422.7,2422.6,0.95999822]
[1728083012305,0.41275,2422.7,2422.6,1.37089822]
[1728083013311,4.00802,2422.8,2422.7,0.41274]
[1728083013802,3.5953,2422.8,2422.6,1.6009]
[1728083014007,0.41274,2422.7,2422.6,0.82364]
[1728083014204,0.41274,2422.7,2422.6,1.37086626]
[1728083016412,4.00803,2422.8,2422.6,1.37086626]
[1728083016613,4.00803,2422.8,2422.6,0.82364]
[1728083017009,0.41274,2422.7,2422.6,0.82364]
[1728083017222,0.41274,2422.7,2422.6,1.37088617]
[1728083017413,0.41274,2422.7,2422.6,0.82364]
[1728083017711,0.41274,2422.7,2422.6,1.37089372]
[1728083018015,0.41274,2422.7,2422.6,0.82364]
[1728083018320,0.41274,2422.7,2422.6,1.37089414]
[1728083018615,3.5953,2422.8,2422.6,0.95815414]
[1728083018917,4.00803,2422.8,2422.7,0.41274]
[1728083020308,4.00803,2422.8,2422.7,0.96005574]
[1728083020705,4.00803,2422.8,2422.7,0.96005548]
[1728083021209,4.00803,2422.8,2422.7,0.96008709]
[1728083023318,4.00803,2422.8,2422.7,0.54734709]
[1728083024115,0.80023,2422.8,2422.7,0.54734709]
[1728083024418,4.00803,2422.8,2422.7,0.54734709]
[1728083024618,0.41274,2422.7,2422.6,0.82365]
[1728083024811,0.41274,2422.7,2422.6,1.37112857]
[1728083027516,0.41274,2422.7,2422.6,2.24729762]
[1728083028424,0.83644,2422.7,2422.6,2.24729762]
[1728083029418,0.4237,2422.7,2422.6,1.83639762]
[1728083029624,0.83644,2422.7,2422.6,1.83639762]
[1728083030424,0.83644,2422.7,2422.6,1.42364762]
[1728083030726,0.83644,2422.7,2422.1,5.37386996]
[1728083030727,0.41281,2422.3,2422.2,1.91964498]
[1728083030923,0.41281,2422.3,2422.2,3.34423966]
[1728083031522,3.5971,2422.5,2422.2,3.34423966]
[1728083031523,0.3878,2422.4,2422.2,3.34446599]
[1728083031825,0.399,2422.3,2422.2,1.91964498]
[1728083032121,0.399,2422.3,2422.2,3.3444681]
[1728083032624,0.81181,2422.3,2422.2,3.3444681]
[1728083032923,0.81181,2422.3,2422.2,2.26143312]
[1728083032924,0.399,2422.3,2422.2,2.26143312]
[1728083033821,0.81181,2422.3,2422.2,1.42482312]
[1728083034923,0.81181,2422.3,2422.0,4.89225734]
[1728083035120,0.4012,2422.2,2422.1,0.41284]
[1728083035322,0.4012,2422.2,2422.1,1.83743751]
[1728083038923,0.4012,2422.2,2422.1,0.41284]
[1728083039125,0.4012,2422.2,2422.1,1.83665694]
[1728083039325,0.4012,2422.2,2422.1,0.9604619]
[1728083041123,0.4012,2422.2,2422.1,0.41284]
[1728083041523,0.4012,2422.2,2422.1,0.96038103]
[1728083041923,0.4012,2422.2,2422.1,3.02633713]
[1728083044431,0.4012,2422.2,2422.1,2.15022748]
[1728083044635,0.4012,2422.2,2422.1,3.02601223]
[1728083046228,0.4012,2422.2,2422.1,3.02596298]
[1728083046835,0.4012,2422.2,2422.1,2.15022748]
[1728083047731,0.4012,2422.2,2422.1,1.60284]
[1728083048433,0.4012,2422.2,2422.1,2.15013845]
[1728083049034,0.4012,2422.2,2422.1,3.02578523]
[1728083049234,0.4012,2422.2,2422.1,2.15013845]
[1728083051230,0.4012,2422.2,2422.1,1.60284]
[1728083051533,0.4012,2422.2,2422.1,3.02569749]
[1728083051733,0.4012,2422.2,2422.1,2.15009288]
[1728083051937,0.4012,2422.2,2422.1,0.96009288]
[1728083054936,0.81402,2422.2,2422.1,0.54725288]
[1728083055238,4.94282,2422.2,2422.1,0.54725288]
[1728083060043,12.13282,2422.2,2422.1,0.54725288]
[1728083060244,0.41289,2421.8,2421.7,0.3943]
[1728083060448,0.41289,2421.8,2421.7,0.94153955]
[1728083060745,4.3978,2421.9,2421.7,0.94153955]
[1728083060945,0.4243,2421.8,2421.7,0.3943]
[1728083061237,0.8196,2421.8,2421.7,0.3943]
[1728083061437,0.8196,2421.8,2421.7,0.94144908]
[1728083061637,0.8196,2421.8,2421.7,1.35435924]
[1728083061835,0.8196,2421.8,2421.7,0.80721]
[1728083062348,1.23249,2421.8,2421.6,0.41292]
[1728083062542,0.8196,2421.8,2421.6,0.41292]
[1728083062745,0.3914,2421.7,2421.6,0.41292]
[1728083062933,0.3914,2421.7,2421.6,0.95999377]
[1728083064338,4.521,2421.7,2421.6,0.54707377]
[1728083064546,0.41293,2421.6,2421.4,0.41295]
[1728083064743,1.19,2421.5,2421.0,0.41302]
[1728083064945,0.83047,2421.4,2421.1,0.96001642]
[1728083065146,0.4067,2421.3,2421.2,0.54701642]
[1728083065339,0.4067,2421.3,2421.2,0.41299]
[1728083065538,0.4067,2421.3,2421.2,1.60299]
[1728083066347,0.4067,2421.3,2421.2,0.41299]
[1728083069251,0.4067,2421.3,2421.0,0.4164]
[1728083069446,0.4073,2421.2,2421.1,0.41301]
[1728083090456,0.4073,2421.2,2421.0,0.41302]
[1728083090657,3.62081,2421.1,2420.9,0.3863]
[1728083090862,4.3978,2421.1,2420.9,0.79934]
[1728083091059,3.62081,2421.1,2420.9,0.3863]
[1728083091460,0.3965,2421.0,2420.9,0.3863]
[1728083091867,0.3965,2421.0,2420.9,0.79934]
[1728083094568,0.3965,2421.0,2420.9,0.3863]
[1728083096770,0.3965,2421.0,2420.9,0.79934]
[1728083099563,0.3965,2421.0,2420.9,0.3863]
[1728083100163,0.3965,2421.0,2420.9,0.79934]
[1728083101259,0.3965,2421.0,2420.8,0.3867]
[1728083101567,0.41307,2420.8,2420.6,0.3913]
[1728083101768,0.3876,2420.7,2420.6,0.3913]
[1728083102957,0.3876,2420.7,2420.6,0.8044]
[1728083103164,0.3876,2420.7,2420.6,0.3913]
[1728083104169,0.3876,2420.7,2420.6,0.8044]
[1728083104570,0.3876,2420.7,2420.6,1.35143358]
[1728083106067,0.3876,2420.7,2420.6,2.54143358]
[1728083106665,0.3876,2420.7,2420.6,2.12833358]
[1728083106865,0.3876,2420.7,2420.6,2.54143358]
[1728083107488,0.3876,2420.7,2420.6,2.12833358]
[1728083107768,0.3876,2420.7,2420.6,0.93833358]
[1728083109270,0.3876,2420.7,2420.6,0.54703358]
[1728083109471,0.80068,2420.7,2420.6,0.54703358]
[1728083109672,0.3876,2420.7,2420.6,0.54703358]
[1728083110878,0.3876,2420.7,2420.6,1.42332614]
[1728083111263,0.3876,2420.7,2420.5,0.83041]
[1728083111469,0.3926,2420.6,2420.5,0.83041]
[1728083111770,0.3926,2420.6,2420.5,2.25430054]
[1728083112168,0.3926,2420.6,2420.5,1.84119054]
[1728083112478,0.3926,2420.6,2420.5,1.42389054]
[1728083113873,0.3926,2420.6,2420.5,1.83700054]
[1728083114480,0.3926,2420.6,2420.5,1.42389054]
[1728083114983,0.3926,2420.6,2420.5,1.83700054]
[1728083118482,0.3876,2420.7,2420.6,0.4131]
[1728083118688,0.3876,2420.7,2420.6,1.37364726]
[1728083120780,0.4106,2420.8,2420.6,0.96054726]
[1728083120979,0.4106,2420.8,2420.6,0.82599]
[1728083121180,0.4106,2420.8,2420.7,0.3907]
[1728083121382,0.82366,2420.8,2420.7,0.3907]
[1728083122180,4.03146,2420.8,2420.7,0.3907]
[1728083123777,0.41308,2420.7,2420.6,0.4129]
[1728083124078,5.22147,2420.8,2420.6,0.96043172]
[1728083124277,5.22147,2420.8,2420.6,0.4129]
[1728083125173,3.6184,2420.8,2420.6,0.4129]
[1728083125373,3.6184,2420.8,2420.0,6.35586996]
[1728083125374,1.19,2420.7,2420.1,1.08303498]
[1728083125580,0.41312,2420.5,2420.3,0.4136]
[1728083125778,0.4264,2420.6,2420.4,0.54752757]
[1728083126090,0.8395,2420.6,2420.3,0.4136]
[1728083126289,0.8395,2420.6,2420.4,0.54753452]
[1728083126586,0.8395,2420.6,2420.3,0.4136]
[1728083126785,0.8395,2420.6,2420.4,0.54750933]
[1728083126981,0.8395,2420.6,2420.3,0.4136]
[1728083127186,0.8395,2420.6,2420.4,0.54750331]
[1728083127393,0.8395,2420.6,2420.3,0.4136]
[1728083127690,0.41311,2420.5,2420.4,0.54748862]
[1728083127899,0.8395,2420.6,2420.4,0.54748862]
[1728083128178,0.8395,2420.6,2420.3,0.82674]
[1728083128386,0.8395,2420.6,2420.4,0.54747374]
[1728083128583,0.8395,2420.6,2420.3,0.82674]
[1728083128986,0.4264,2420.6,2420.4,0.54746724]
[1728083129187,0.41311,2420.5,2420.3,0.4136]
[1728083129487,0.4264,2420.6,2420.4,0.54748774]
[1728083129684,0.4264,2420.6,2420.3,0.4136]
[1728083129685,0.8395,2420.6,2420.3,0.82674]
[1728083130083,0.8395,2420.6,2420.4,0.54745967]
[1728083130284,0.41311,2420.5,2420.3,0.4136]
[1728083130491,0.41311,2420.5,2420.4,0.54745003]
[1728083130686,0.8395,2420.6,2420.4,0.54745003]
[1728083130891,0.8395,2420.6,2420.3,0.82674]
[1728083131186,0.8395,2420.6,2420.4,0.54744997]
[1728083131379,0.8395,2420.6,2420.3,0.82674]
[1728083131574,0.41311,2420.5,2420.4,0.5474551]
[1728083131784,0.41311,2420.5,2420.3,0.82674]
[1728083132186,4.3978,2420.5,2420.3,0.82674]
[1728083133187,4.3978,2420.5,2420.3,0.4136]
[1728083133380,4.3978,2420.5,2420.1,0.844]
[1728083133381,0.41315,2420.3,2420.1,0.844]
[1728083133581,0.41316,2420.3,2420.1,0.8474]
[1728083133789,0.4245,2420.2,2420.1,0.8474]
[1728083134092,0.4245,2420.2,2420.1,1.80806609]
[1728083134291,0.4245,2420.2,2420.1,1.39488609]
[1728083134495,0.4245,2420.2,2420.0,0.41319]
[1728083134784,0.4245,2420.2,2419.9,0.818]
[1728083134981,0.4245,2420.2,2420.0,0.5474489]
[1728083135182,0.4245,2420.2,2420.0,0.4132]
[1728083135583,0.83767,2420.2,2419.9,1.2312]
[1728083135787,0.4245,2420.2,2419.9,0.818]
[1728083135989,0.4245,2420.2,2420.0,0.54739615]
[1728083136186,0.4245,2420.2,2419.9,1.2312]
[1728083136491,0.4245,2420.2,2420.0,0.54731267]
[1728083136793,0.83767,2420.2,2419.9,1.2312]
[1728083136986,0.83767,2420.2,2420.0,0.5473608]
[1728083137190,4.04547,2420.2,2419.9,1.2312]
[1728083137390,4.04547,2420.2,2420.0,0.54730481]
[1728083137605,4.04547,2420.2,2419.9,1.2312]
[1728083137606,3.6323,2420.2,2419.9,1.2312]
[1728083137907,3.6323,2420.2,2420.0,0.54730206]
[1728083138107,3.6323,2420.2,2419.9,1.2312]
[1728083138302,4.04548,2420.2,2420.0,0.54729408]
[1728083138496,4.04548,2420.2,2419.9,1.23121]
[1728083138699,4.04548,2420.2,2420.0,0.5472635]
[1728083138896,5.23548,2420.2,2419.9,0.818]
[1728083139106,5.23548,2420.2,2420.0,0.54726788]
[1728083139311,5.23548,2420.2,2419.9,0.818]
[1728083139501,5.23548,2420.2,2419.9,1.23121]
[1728083141117,5.23548,2420.2,2419.6,4.54610069]
[1728083141412,5.23548,2420.2,2419.9,0.82901]
[1728083141801,0.3965,2420.1,2419.9,0.82901]
[1728083141999,0.3965,2420.1,2419.9,0.4158]
[1728083142404,0.3965,2420.1,2419.9,0.82901]
[1728083142604,0.3965,2420.1,2420.0,0.4226]
[1728083143109,0.41328,2419.6,2419.1,0.50934]
[1728083143409,0.817,2419.5,2419.2,1.36589486]
[1728083143599,1.60331,2419.4,2419.2,0.8186]
[1728083144002,0.41332,2419.3,2419.2,0.8186]
[1728083144310,0.41332,2419.3,2418.5,1.17903498]
[1728083144311,4.1336,2419.3,2418.5,1.17903498]
[1728083144509,4.3978,2418.8,2418.6,0.54681351]
[1728083144810,4.3978,2418.8,2418.5,1.62425]
[1728083144998,4.7899,2418.8,2418.6,0.54684499]
[1728083145201,4.7899,2418.8,2418.6,0.41343]
[1728083146006,1.5821,2418.8,2418.5,1.2108]
[1728083146208,1.5821,2418.8,2418.5,1.62425]
[1728083146209,4.7899,2418.8,2418.5,1.62425]
[1728083146400,1.5821,2418.8,2418.5,1.62425]
[1728083146600,4.7899,2418.8,2418.5,1.62425]
[1728083146804,3.2078,2418.7,2418.5,1.62425]
[1728083147004,1.5821,2418.8,2418.5,1.62425]
[1728083147207,4.7899,2418.8,2418.5,1.62425]
[1728083148110,1.5821,2418.8,2418.5,1.62425]
[1728083148713,4.7899,2418.8,2418.5,1.62425]
[1728083149010,3.5918,2419.1,2418.9,0.41339]
[1728083149205,0.81822,2419.3,2419.0,1.60337]
[1728083149405,0.81822,2419.3,2419.0,0.41337]
[1728083149605,0.81822,2419.3,2418.9,0.41337]
[1728083149818,0.81822,2419.3,2418.9,1.22737]
[1728083150205,1.23222,2419.3,2418.9,1.22737]
[1728083150403,0.41333,2419.2,2418.9,1.22737]
[1728083150606,1.23223,2419.3,2418.9,1.22737]
[1728083151305,0.41334,2419.2,2418.9,1.22737]
[1728083152915,0.8189,2419.3,2418.9,1.22737]
[1728083153111,0.8189,2419.3,2419.0,1.60335]
[1728083153409,0.8189,2419.3,2419.1,0.41335]
[1728083154919,0.8189,2419.3,2419.2,0.41333]
[1728083155123,0.8189,2419.3,2419.1,0.41334]
[1728083155714,0.8189,2419.3,2419.1,0.41335]
[1728083156813,3.2078,2419.4,2419.3,0.41332]
[1728083168923,0.8207,2419.7,2419.5,0.41327]
[1728083169129,0.8207,2419.7,2419.4,1.2023]
[1728083169325,0.8207,2419.7,2419.6,0.41327]
[1728083170627,3.2078,2419.8,2419.6,5.3228]
[1728083170928,3.2078,2419.8,2419.7,0.41325]
[1728083177028,0.3877,2420.0,2419.9,0.41321]
[1728083177220,0.3877,2420.0,2419.9,1.60321]
[1728083177420,3.2078,2420.1,2420.0,0.4132]
[1728083177726,0.5198,2420.3,2420.2,0.41316]
[1728083177727,0.4238,2420.3,2420.2,0.41316]
[1728083178632,8.9536,2420.3,2419.3,3.3038]
[1728083178823,1.19,2419.7,2419.5,0.41327]
[1728083179021,1.2128,2419.6,2419.5,0.41327]
[1728083179418,1.2128,2419.6,2419.4,9.29169284]
[1728083179622,2.4028,2419.6,2419.3,3.2078]
[1728083179828,0.41328,2419.5,2419.3,3.2078]
[1728083180030,2.81607,2419.6,2419.3,3.2078]
[1728083180935,2.81607,2419.6,2419.1,1.19]
[1728083180936,2.4028,2419.6,2419.1,1.19]
[1728083181120,0.41328,2419.5,2419.1,1.19]
[1728083182130,2.81607,2419.6,2419.1,1.60334]
[1728083182528,2.81607,2419.6,2418.9,0.81487]
[1728083182529,4.81111,2419.4,2418.9,0.81487]
[1728083182728,1.60332,2419.3,2418.8,3.2078]
[1728083182920,1.60332,2419.3,2418.9,0.41338]
[1728083183124,0.3922,2419.2,2418.9,0.41338]
[1728083183322,0.3968,2419.1,2418.9,0.41338]
[1728083183528,0.3968,2419.1,2419.0,0.41337]
[1728083186626,3.2078,2419.4,2419.1,0.41335]
[1728083186827,3.5962,2419.4,2419.1,0.80515]
[1728083187330,3.5962,2419.4,2419.2,0.41333]
[1728083189435,3.5962,2419.4,2419.2,1.19]
[1728083189635,3.5962,2419.4,2419.3,0.41332]
[1728083189830,0.3884,2419.4,2419.3,0.41332]
[1728083192531,0.3884,2419.4,2419.3,0.96036096]
[1728083192936,0.3884,2419.4,2419.1,1.5818]
[1728083193229,0.3884,2419.4,2419.3,0.41332]
[1728083194339,0.3884,2419.4,2419.3,0.960564]
[1728083194739,0.3884,2419.4,2419.3,0.41332]
[1728083195036,0.3884,2419.4,2419.3,0.96056237]
[1728083196335,0.8017,2419.4,2419.3,0.54724237]
[1728083196635,0.3884,2419.4,2419.1,0.41334]
[1728083196935,0.8017,2419.4,2419.2,0.54733522]
[1728083197131,0.8017,2419.4,2419.1,0.41334]
[1728083197331,0.8017,2419.4,2419.2,0.54734625]
[1728083197634,0.8017,2419.4,2419.1,0.41334]
[1728083197835,0.8017,2419.4,2419.2,0.54736938]
[1728083198039,0.3884,2419.4,2419.1,0.41334]
[1728083198447,0.3884,2419.4,2419.2,0.54736944]
[1728083198641,0.3884,2419.4,2418.9,1.46883498]
[1728083198853,0.3884,2419.4,2419.0,1.42323073]
[1728083199136,0.3884,2419.4,2419.1,0.96073643]
[1728083199336,0.3884,2419.4,2419.2,0.54739643]
[1728083199528,0.3884,2419.4,2418.9,1.46883498]
[1728083199741,0.3884,2419.4,2419.0,1.83665733]
[1728083199938,0.3884,2419.4,2419.1,0.54742205]
[1728083200144,0.80171,2419.4,2419.2,0.54742205]
[1728083200334,0.80171,2419.4,2419.0,9.26250372]
[1728083200531,0.3884,2419.4,2419.1,0.54745118]
[1728083200731,1.19,2419.3,2418.8,4.29083498]
[1728083200931,1.19,2419.0,2418.9,0.5474831]
[1728083201336,1.60337,2419.0,2418.8,3.2078]
[1728083201638,1.25589,2418.9,2418.8,3.2078]
[1728083201836,1.25589,2418.9,2418.8,3.7552905]
[1728083202039,0.8425,2418.9,2418.8,4.1686905]
[1728083202235,0.8425,2418.9,2418.8,4.16869945]
[1728083202443,0.8425,2418.9,2418.8,0.96089945]
[1728083202642,0.8425,2418.9,2418.8,0.96085185]
[1728083204338,0.8425,2418.9,2418.8,0.4134]
[1728083205441,0.8425,2418.9,2418.6,1.606]
[1728083205642,0.8425,2418.9,2418.7,0.96064586]
[1728083205939,0.8425,2418.9,2418.7,0.41341]
[1728083209950,0.8425,2418.9,2418.6,0.416]
[1728083210146,0.8425,2418.9,2418.8,0.4134]
[1728083210355,7.4898,2419.5,2418.8,4.3978]
[1728083210546,1.6496,2419.4,2419.1,0.41335]
[1728083210747,2.8396,2419.4,2419.1,0.41335]
[1728083211239,2.8396,2419.4,2419.0,0.3859]
[1728083211240,2.4263,2419.4,2419.0,0.3859]
[1728083211455,0.8254,2419.4,2419.3,0.41332]
[1728083214959,0.8254,2419.4,2419.2,0.41333]
[1728083215255,2.0154,2419.4,2419.2,0.41333]
[1728083218754,2.42871,2419.4,2418.9,0.41339]
[1728083218955,2.42871,2419.4,2419.1,0.41334]
[1728083220251,2.0154,2419.4,2418.9,0.385]
[1728083220453,0.41333,2419.3,2419.0,0.96051229]
[1728083220654,0.41333,2419.3,2419.1,0.41335]
[1728083220859,0.41333,2419.3,2419.0,0.41336]
[1728083221559,0.41338,2419.0,2418.7,0.3948]
[1728083221757,0.41338,2419.0,2418.7,0.80821]
[1728083221758,0.8486,2418.9,2418.7,0.80821]
[1728083223263,0.8486,2418.9,2418.8,0.54740907]
[1728083223562,0.8486,2418.9,2418.8,0.54739742]
[1728083223858,0.8486,2418.9,2418.7,0.4083]
[1728083224263,0.8486,2418.9,2418.8,0.54774184]
[1728083224460,0.8486,2418.9,2418.8,0.5477251]
[1728083224657,2.0386,2418.9,2418.8,0.5477251]
[1728083225966,0.8486,2418.9,2418.8,0.9611251]
[1728083226167,0.4263,2418.9,2418.8,0.9611251]
[1728083226465,0.397,2419.1,2418.9,0.41338]
[1728083226665,0.81035,2419.1,2419.0,0.4113]
[1728083230171,0.41338,2419.0,2418.7,0.41341]
[1728083230475,0.4227,2418.9,2418.8,0.54781495]
[1728083231170,0.4227,2418.9,2418.7,0.80861]
[1728083231372,0.4227,2418.9,2418.8,0.54779291]
[1728083231575,0.4227,2418.9,2418.7,0.80861]
[1728083231879,0.83609,2418.9,2418.8,0.54779418]
[1728083232567,0.4227,2418.9,2418.8,0.54779418]
[1728083232880,0.83609,2418.9,2418.8,0.54779418]
[1728083233372,14.17829,2418.9,2418.8,0.54779418]
[1728083233573,0.41619517,2418.8,2417.5,4.78703462]
[1728083233772,0.41619517,2418.8,2417.3,1.08313005]
[1728083233773,3.2078,2417.6,2417.3,1.08313005]
[1728083234178,1.19,2417.5,2416.9,1.62498112]
[1728083234479,3.2078,2417.3,2416.8,4.4088]
[1728083234871,4.3978,2417.3,2416.9,8.64475855]
[1728083235072,3.2078,2417.0,2416.2,2.16606996]
[1728083235279,1.19,2416.5,2416.2,2.16606996]
[1728083235484,1.19,2416.5,2415.9,2.9101493]
[1728083235485,1.19,2416.3,2415.9,0.20256185]
[1728083235776,3.2078,2416.4,2415.9,0.20256185]
[1728083236075,3.2078,2416.4,2415.8,0.4012]
[1728083236278,2.58,2416.0,2415.2,3.2078]
[1728083236479,3.2078,2416.1,2415.6,0.41394]
[1728083236773,2.58,2415.7,2415.4,8.80605966]
[1728083237075,2.58,2415.7,2414.9,3.2078]
[1728083237076,2.58,2415.5,2414.9,3.62187]
[1728083237377,3.2078,2415.5,2414.9,2.58]
[1728083237576,3.2078,2415.5,2415.0,0.41405]
[1728083237969,3.2078,2415.5,2414.9,2.58]
[1728083238173,3.2078,2415.5,2415.0,0.41405]
[1728083238369,0.096,2415.7,2415.3,0.414]
[1728083238575,3.2078,2415.8,2415.3,0.414]
[1728083238776,3.2078,2415.8,2415.4,2.99398]
[1728083238975,3.2078,2415.8,2415.5,0.41397]
[1728083239573,3.2078,2415.8,2415.4,2.58]
[1728083239777,3.2078,2415.8,2415.7,0.41393]
[1728083240384,0.7719,2416.2,2415.8,0.4139]
[1728083240578,0.7719,2416.2,2415.7,3.2078]
[1728083240579,0.3879,2416.2,2415.7,3.2078]
[1728083240777,3.2078,2416.3,2416.0,2.58]
[1728083240982,3.2078,2416.3,2416.1,0.41386]
[1728083241781,0.096,2416.5,2416.2,0.41385]
[1728083241981,3.2078,2416.7,2416.1,0.41386]
[1728083242777,3.2078,2416.7,2416.0,2.58]
[1728083242982,3.2078,2416.7,2416.1,0.41385]
[1728083243282,3.2078,2416.7,2416.2,0.41384]
[1728083243989,3.2078,2416.7,2416.1,0.41386]
[1728083244883,0.41378,2416.6,2416.0,0.41387]
[1728083245091,3.2078,2416.7,2416.0,0.41387]
[1728083245288,3.62157,2416.7,2416.0,0.41387]
[1728083245881,3.62157,2416.7,2415.8,3.4065]
[1728083246084,3.2078,2416.7,2416.1,0.41386]
[1728083246386,3.2078,2416.7,2415.8,3.4065]
[1728083246387,3.2078,2416.7,2415.9,8.74607615]
[1728083246587,3.2078,2416.7,2416.1,0.41385]
[1728083247780,3.2078,2416.7,2416.2,0.41385]
[1728083248188,3.62156,2416.7,2416.1,0.41385]
[1728083250384,3.62156,2416.7,2415.9,8.74607615]
[1728083250591,3.62156,2416.7,2416.1,0.41385]
[1728083250786,3.62156,2416.7,2415.9,8.74607615]
[1728083251089,3.62156,2416.7,2416.2,0.41384]
[1728083251688,3.2078,2416.7,2416.2,0.41384]
[1728083252789,3.2078,2416.7,2416.3,0.41382]
[1728083253489,3.2078,2416.7,2415.9,8.74607615]
[1728083253793,3.2078,2416.7,2416.3,0.41383]
[1728083254095,3.62157,2416.7,2416.2,0.41384]
[1728083254296,3.2078,2416.4,2416.0,0.41387]
[1728083254681,3.2078,2416.4,2415.8,2.0645]
[1728083254885,3.2078,2416.4,2415.8,4.6445]
[1728083255083,3.2078,2416.4,2416.3,0.41383]
[1728083255289,3.2078,2416.4,2415.9,0.4139]
[1728083255486,3.2078,2416.4,2416.2,0.41383]